[Event "SC Kreuzberg IM 2018"]
[Site "Berlin"]
[Date "2018.08.05"]
[Round "4.2"]
[White "Moritz, Aron"]
[Black "Sandu, Mihaela"]
[Result "0-1"]
[ECO "B82"]
[WhiteElo "2199"]
[BlackElo "2268"]
[Annotator "NA"]
[PlyCount "110"]
[EventDate "2018.08.06"]
[EventType "tourn"]
[EventCountry "GER"]
[SourceTitle "playchess.com"]
[Source "ChessBase"]
[SourceQuality "1"]
[TimeControl "40/5400+30:1800+30"]

1. e4 {[%emt 1:30:27]} c5 {[%emt 1:30:27]} 2. Nf3 {[%emt 1:30:48]} d6 {[%emt 1:30:53]} 3. d4 {[%emt 1:31:13]} cxd4 {[%emt 1:31:20]} 4. Nxd4 {[%emt 1:31:37]} Nf6 {[%emt 1:31:46]} 5. Nc3 {[%emt 1:31:56]} a6 {[%emt 1:32:12]} 6. Be3 {[%emt 1:31:53]} e6 {[%emt 1:32:24]} 7. f4 {[%emt 1:31:44]} b5 {[%emt 1:32:33]} 8. Qf3 {[%emt 1:31:32]} Bb7 {[%emt 1:32:46]} 9. Bd3 {[%emt 1:31:24]} Nbd7 {[%emt 1:32:58]} 10. g4 {[%emt 1:30:44]} b4 {[%emt 1:29:44]} 11. Nce2 {[%emt 1:31:00]} Nc5 {[%emt 1:29:53]} 12. Ng3 {[%emt 1:31:18]} Nfd7 {[%emt 1:27:10]} 13. O-O {[%emt 1:21:05]} g6 {[%emt 1:21:34]} 14. g5 {[%emt 1:06:13]} Bg7 {[%emt 1:06:13]} 15. a3 {[%emt 0:59:05]} Nxd3 {[%emt 0:59:24]} 16. cxd3 {[%emt 0:59:27]} bxa3 {[%emt 0:59:35]} 17. bxa3 {[%emt 0:57:27]} O-O {[%emt 0:59:42]} 18. Rab1 {[%emt 0:56:05]} Rb8 {[%emt 0:58:32]} 19. Qf2 {[%emt 0:45:35]} Nc5 {[%emt 0:55:12]} 20. Nb3 {[%emt 0:44:07]} Na4 {[%emt 0:51:27]} 21. Ba7 {[%emt 0:41:15]} Rc8 {[%emt 0:50:05]} 22. Bd4 {[%emt 0:33:16]} e5 {[%emt 0:49:50]} 23. Be3 {[%emt 0:32:27]} exf4 {[%emt 0:48:12]} 24. Qxf4 {[%emt 0:32:07]} Be5 {[%emt 0:44:16]} 25. Qf2 {[%emt 0:31:00]} Nc3 {[%emt 0:43:53]} 26. Rbe1 {[%emt 0:28:42]} d5 {[%emt 0:40:39]} 27. Bc5 {[%emt 0:18:38]} Bd6 {[%emt 0:24:32]} 28. e5 {[%emt 0:17:58]} Be7 {[%emt 0:21:05]} 29. Bxe7 {[%emt 0:15:10]} Qxe7 {[%emt 0:21:30]} 30. Qf6 {[%emt 0:14:57]} Rc7 {[%emt 0:18:08]} 31. Nd4 {[%emt 0:12:38]} Bc8 {[%emt 0:17:31]} 32. Rc1 {[%emt 0:08:02]} Qc5 {[%emt 0:14:02]} 33. Rf4 {[%emt 0:08:18]} Qxa3 {[%emt 0:10:02]} 34. Rcf1 {[%emt 0:08:25]} Qe7 {[%emt 0:10:13]} 35. Rh4 {[%emt 0:05:50]} Qxf6 {[%emt 0:09:27]} 36. exf6 {[%emt 0:06:11]} Re8 {[%emt 0:08:57]} 37. Rff4 {[%emt 0:04:31]} Nd1 {[%emt 0:02:40]} 38. Rh6 {[%emt 0:00:52]} Rc1 {[%emt 0:02:57]} 39. Nde2 {[%emt 0:00:52]} Rb1 {[%emt 0:03:15]} 40. h3 {[%emt 0:00:21]} Nc3+ {[%emt 0:03:01]} 41. Kf2 {[%emt 0:27:15]} Nxe2 {[%emt 0:29:49]} 42. Rfh4 {[%emt 0:25:00]} Nxg3 {[%emt 0:27:40]} 43. Kxg3 {[%emt 0:25:25]} Rg1+ {[%emt 0:28:03]} 44. Kf4 {[%emt 0:25:38]} Rf1+ {[%emt 0:28:14]} 45. Kg3 {[%emt 0:26:03]} Rf5 {[%emt 0:28:25]} 46. Rxh7 {[%emt 0:24:02]} Rxg5+ {[%emt 0:28:40]} 47. Kf4 {[%emt 0:23:24]} Rf5+ {[%emt 0:28:34]} 48. Kg3 {[%emt 0:23:49]} Re3+ {[%emt 0:28:49]} 49. Kg2 {[%emt 0:24:12]} Rh5 {[%emt 0:29:05]} 50. Rg7+ {[%emt 0:24:10]} Kf8 {[%emt 0:28:15]} 51. Rxh5 {[%emt 0:22:40]} gxh5 {[%emt 0:28:31]} 52. Rh7 {[%emt 0:23:05]} Ke8 {[%emt 0:27:16]} 53. Rh8+ {[%emt 0:23:14]} Kd7 {[%emt 0:27:40]} 54. Rf8 {[%emt 0:23:40]} Re8 {[%emt 0:26:12]} 55. Rxf7+ {[%emt 0:24:04]} Ke6 {[%emt 0:26:39]} 0-1

[Event "SC Kreuzberg IM 2018"]
[Site "Berlin"]
[Date "2018.08.05"]
[Round "4.4"]
[White "Glantz, Robert"]
[Black "Barath, Madhan"]
[Result "0-1"]
[ECO "E60"]
[WhiteElo "2336"]
[BlackElo "2307"]
[Annotator "NA"]
[PlyCount "58"]
[EventDate "2018.08.06"]
[EventType "tourn"]
[EventCountry "GER"]
[SourceTitle "playchess.com"]
[Source "ChessBase"]
[SourceQuality "1"]
[TimeControl "40/5400+30:1800+30"]

1. Nf3 Nf6 {[%emt 1:30:25]} 2. b3 {[%emt 1:29:18]} d6 {[%emt 1:29:35]} 3. d4 {[%emt 1:28:42]} g6 {[%emt 1:25:14]} 4. Bb2 {[%emt 1:28:34]} Bg7 {[%emt 1:25:25]} 5. g3 {[%emt 1:28:40]} O-O {[%emt 1:25:29]} 6. Bg2 {[%emt 1:29:00]} c5 {[%emt 1:25:07]} 7. c4 {[%emt 1:24:00]} Nc6 {[%emt 1:18:19]} 8. O-O {[%emt 1:22:21]} Ne4 {[%emt 1:16:56]} 9. h3 {[%emt 1:02:55]} f5 {[%emt 0:55:36]} 10. e3 {[%emt 0:53:47]} e5 {[%emt 0:47:12]} 11. Na3 {[%emt 0:43:35]} exd4 {[%emt 0:42:47]} 12. exd4 {[%emt 0:43:56]} Ng5 {[%emt 0:26:12]} 13. Nc2 {[%emt 0:38:58]} f4 {[%emt 0:22:20]} 14. g4 {[%emt 0:32:52]} Nxh3+ {[%emt 0:13:13]} 15. Bxh3 {[%emt 0:33:16]} h5 {[%emt 0:13:36]} 16. Nh2 {[%emt 0:26:51]} f3 {[%emt 0:13:04]} 17. Re1 {[%emt 0:14:42]} hxg4 {[%emt 0:08:38]} 18. Kh1 {[%emt 0:10:11]} Qh4 {[%emt 0:06:17]} 19. Bxg4 {[%emt 0:06:05]} Bxg4 {[%emt 0:06:40]} 20. Rg1 {[%emt 0:05:59]} Bh3 {[%emt 0:05:11]} 21. Rg3 {[%emt 0:05:18]} Bg2+ {[%emt 0:03:05]} 22. Kg1 {[%emt 0:05:43]} Rf5 {[%emt 0:03:17]} 23. Rg4 {[%emt 0:03:07]} Qh3 {[%emt 0:01:31]} 24. Ne3 {[%emt 0:00:33]} Rh5 {[%emt 0:01:22]} 25. Rxg2 {[%emt 0:00:51]} fxg2 {[%emt 0:01:46]} 26. Neg4 {[%emt 0:01:13]} cxd4 {[%emt 0:00:25]} 27. Bc1 {[%emt 0:00:09]} Ne5 {[%emt 0:00:23]} 28. Bf4 {[%emt 0:00:03]} Nxg4 {[%emt 0:00:38]} 29. Qxg4 {[%emt 0:00:21]} Qxg4 {[%emt 0:01:04]} 0-1

[Event "SC Kreuzberg IM 2018"]
[Site "Berlin"]
[Date "2018.08.05"]
[Round "4.5"]
[White "Meissner, Felix"]
[Black "Berger, Steve"]
[Result "1/2-1/2"]
[ECO "C07"]
[WhiteElo "2330"]
[BlackElo "2428"]
[Annotator "NA"]
[PlyCount "21"]
[EventDate "2018.08.06"]
[EventType "tourn"]
[EventCountry "GER"]
[SourceTitle "playchess.com"]
[Source "ChessBase"]
[SourceQuality "1"]
[TimeControl "40/5400+30:1800+30"]

1. e4 {[%emt 1:30:25]} e6 {[%emt 1:30:21]} 2. d4 {[%emt 1:30:51]} d5 {[%emt 1:30:43]} 3. Nd2 {[%emt 1:31:17]} c5 {[%emt 1:30:55]} 4. exd5 {[%emt 1:31:36]} Qxd5 {[%emt 1:31:16]} 5. Ngf3 {[%emt 1:31:59]} cxd4 {[%emt 1:31:34]} 6. Bc4 {[%emt 1:32:18]} Qd7 {[%emt 1:31:55]} 7. O-O {[%emt 1:32:40]} Nc6 {[%emt 1:32:13]} 8. Nb3 {[%emt 1:32:51]} Nf6 {[%emt 1:32:04]} 9. Nbxd4 {[%emt 1:33:10]} Nxd4 {[%emt 1:32:19]} 10. Qxd4 {[%emt 1:33:16]} Qxd4 {[%emt 1:32:35]} 11. Nxd4 {[%emt 1:33:35]} 1/2-1/2

[Event "SC Kreuzberg IM 2018"]
[Site "Berlin"]
[Date "2018.08.05"]
[Round "5.2"]
[White "Barath, Madhan"]
[Black "Meissner, Felix"]
[Result "0-1"]
[ECO "E32"]
[WhiteElo "2307"]
[BlackElo "2330"]
[Annotator "NA"]
[PlyCount "98"]
[EventDate "2018.08.06"]
[EventType "tourn"]
[EventCountry "GER"]
[SourceTitle "playchess.com"]
[Source "ChessBase"]
[SourceQuality "1"]
[TimeControl "40/5400+30:1800+30"]

1. d4 {[%emt 1:30:27]} Nf6 {[%emt 1:30:15]} 2. c4 {[%emt 1:30:15]} e6 {[%emt 1:30:15]} 3. Nc3 {[%emt 1:31:09]} Bb4 {[%emt 1:30:02]} 4. Qc2 {[%emt 1:31:28]} O-O {[%emt 1:30:18]} 5. e4 {[%emt 1:31:40]} d6 {[%emt 1:25:58]} 6. Bd3 {[%emt 1:31:52]} e5 {[%emt 1:25:43]} 7. a3 {[%emt 1:29:19]} Bxc3+ {[%emt 1:24:59]} 8. bxc3 {[%emt 1:29:44]} c5 {[%emt 1:21:43]} 9. d5 {[%emt 1:29:06]} Nh5 {[%emt 1:17:38]} 10. Ne2 {[%emt 1:25:09]} Qh4 {[%emt 1:14:45]} 11. O-O {[%emt 1:17:06]} Nd7 {[%emt 1:12:03]} 12. g3 {[%emt 1:08:02]} Qh3 {[%emt 1:08:36]} 13. f3 {[%emt 1:07:35]} g6 {[%emt 1:02:08]} 14. g4 {[%emt 0:41:38]} Ng7 {[%emt 0:58:19]} 15. Ng3 {[%emt 0:41:39]} h5 {[%emt 0:56:00]} 16. Qe2 {[%emt 0:28:55]} Qh4 {[%emt 0:49:50]} 17. g5 {[%emt 0:21:11]} f6 {[%emt 0:48:17]} 18. f4 {[%emt 0:21:05]} fxg5 {[%emt 0:43:26]} 19. fxg5 {[%emt 0:21:17]} Rf4 {[%emt 0:40:37]} 20. Kh1 {[%emt 0:10:58]} Nf8 {[%emt 0:35:39]} 21. Qe3 {[%emt 0:08:35]} Rxf1+ {[%emt 0:29:35]} 22. Nxf1 {[%emt 0:07:41]} Nh7 {[%emt 0:27:49]} 23. Ra2 {[%emt 0:04:17]} Bh3 {[%emt 0:26:16]} 24. Ng3 {[%emt 0:03:42]} Rf8 {[%emt 0:26:13]} 25. Rf2 {[%emt 0:03:49]} Rxf2 {[%emt 0:04:18]} 26. Qxf2 {[%emt 0:04:18]} Qg4 {[%emt 0:24:29]} 27. Be2 {[%emt 0:02:27]} Qc8 {[%emt 0:22:58]} 28. Nxh5 {[%emt 0:01:28]} Nxh5 {[%emt 0:07:11]} 29. Bxh5 {[%emt 0:01:54]} gxh5 {[%emt 0:06:21]} 30. g6 {[%emt 0:02:21]} Qd7 {[%emt 0:05:41]} 31. gxh7+ {[%emt 0:01:42]} Kxh7 {[%emt 0:05:57]} 32. Bg5 {[%emt 0:00:42]} Kg8 {[%emt 0:06:27]} 33. Qg3 {[%emt 0:00:07]} Bg4 {[%emt 0:03:13]} 34. Bf6 {[%emt 0:00:03]} Qh7 {[%emt 0:02:40]} 35. Qe3 {[%emt 0:00:04]} Qg6 {[%emt 0:03:09]} 36. Bg5 {[%emt 0:00:17]} Bd1 {[%emt 0:02:22]} 37. h4 {[%emt 0:00:03]} Bc2 {[%emt 0:02:34]} 38. Kh2 {[%emt 0:00:16]} Bxe4 {[%emt 0:02:37]} 39. Qf2 {[%emt 0:00:10]} b6 {[%emt 0:01:48]} 40. Be7 {[%emt 0:00:10]} Kh7 {[%emt 0:00:28]} 41. Bg5 {[%emt 0:12:41]} Bf5 {[%emt 0:27:17]} 42. Qf3 {[%emt 0:11:55]} Qf7 {[%emt 0:24:45]} 43. Qf2 {[%emt 0:09:41]} Kg8 {[%emt 0:24:50]} 44. Qe3 {[%emt 0:07:02]} Kf8 {[%emt 0:22:32]} 45. Kg2 {[%emt 0:06:59]} Ke8 {[%emt 0:21:57]} 46. Qd2 {[%emt 0:05:39]} Be4+ {[%emt 0:22:11]} 47. Kg1 {[%emt 0:05:21]} Qf3 {[%emt 0:22:20]} 48. Qh2 {[%emt 0:03:05]} Qd1+ {[%emt 0:21:42]} 49. Kf2 {[%emt 0:03:29]} Qc2+ {[%emt 0:22:07]} 0-1

[Event "SC Kreuzberg IM 2018"]
[Site "Berlin"]
[Date "2018.08.05"]
[Round "5.3"]
[White "Malek, Daniel"]
[Black "Glantz, Robert"]
[Result "1-0"]
[ECO "E73"]
[WhiteElo "2383"]
[BlackElo "2336"]
[Annotator "NA"]
[PlyCount "95"]
[EventDate "2018.08.06"]
[EventType "tourn"]
[EventCountry "GER"]
[SourceTitle "playchess.com"]
[Source "ChessBase"]
[SourceQuality "1"]
[TimeControl "40/5400+30:1800+30"]

1. c4 {[%emt 1:30:27]} Nf6 {[%emt 1:29:26]} 2. Nc3 {[%emt 1:30:51]} g6 {[%emt 1:28:42]} 3. d4 {[%emt 1:30:41]} Bg7 {[%emt 1:29:05]} 4. e4 {[%emt 1:31:05]} d6 {[%emt 1:29:26]} 5. Be2 {[%emt 1:31:21]} O-O {[%emt 1:29:47]} 6. Be3 {[%emt 1:31:44]} c5 {[%emt 1:29:21]} 7. d5 {[%emt 1:30:58]} e6 {[%emt 1:29:38]} 8. Nf3 {[%emt 1:31:23]} exd5 {[%emt 1:29:48]} 9. cxd5 {[%emt 1:31:45]} Bg4 {[%emt 1:29:50]} 10. Nd2 {[%emt 1:31:50]} Bxe2 {[%emt 1:30:12]} 11. Qxe2 {[%emt 1:32:17]} Re8 {[%emt 1:29:44]} 12. O-O {[%emt 1:32:30]} Na6 {[%emt 1:26:20]} 13. Kh1 {[%emt 1:32:23]} Nc7 {[%emt 1:25:40]} 14. a4 {[%emt 1:32:46]} Qe7 {[%emt 1:25:50]} 15. Rae1 {[%emt 1:25:55]} Nd7 {[%emt 1:15:49]} 16. f4 {[%emt 1:23:38]} Bxc3 {[%emt 1:03:40]} 17. bxc3 {[%emt 1:23:56]} Nf6 {[%emt 1:04:06]} 18. Qd1 {[%emt 1:13:42]} Nxe4 {[%emt 0:50:45]} 19. Bxc5 {[%emt 1:11:28]} f5 {[%emt 0:49:57]} 20. Nxe4 {[%emt 1:10:23]} fxe4 {[%emt 0:50:27]} 21. Bd4 {[%emt 1:05:59]} Nxd5 {[%emt 0:43:07]} 22. f5 {[%emt 1:05:35]} g5 {[%emt 0:37:23]} 23. Qh5 {[%emt 1:01:30]} Nf4 {[%emt 0:20:11]} 24. Qh6 {[%emt 0:39:20]} Nd3 {[%emt 0:19:23]} 25. Rxe4 {[%emt 0:37:53]} Ne5 {[%emt 0:19:21]} 26. Bxe5 {[%emt 0:35:34]} dxe5 {[%emt 0:19:40]} 27. f6 {[%emt 0:36:00]} Qf7 {[%emt 0:19:47]} 28. Qxg5+ {[%emt 0:35:34]} Kh8 {[%emt 0:20:00]} 29. Rxe5 {[%emt 0:35:07]} Rxe5 {[%emt 0:20:16]} 30. Qxe5 {[%emt 0:35:31]} Re8 {[%emt 0:17:02]} 31. Qd4 {[%emt 0:35:46]} b6 {[%emt 0:17:15]} 32. h3 {[%emt 0:35:30]} Rf8 {[%emt 0:13:09]} 33. Rf5 {[%emt 0:34:25]} Re8 {[%emt 0:10:17]} 34. Re5 {[%emt 0:32:27]} Rf8 {[%emt 0:09:14]} 35. Rd5 {[%emt 0:24:00]} Qxf6 {[%emt 0:06:08]} 36. Rf5 {[%emt 0:23:29]} Qxd4 {[%emt 0:06:32]} 37. Rxf8+ {[%emt 0:23:55]} Kg7 38. cxd4 {[%emt 0:24:22]} Kxf8 {[%emt 0:07:18]} 39. Kg1 {[%emt 0:24:46]} Ke7 {[%emt 0:01:16]} 40. Kf2 {[%emt 0:25:09]} Ke6 {[%emt 0:01:13]} 41. Ke3 {[%emt 0:25:29]} a6 {[%emt 0:24:08]} 42. g4 {[%emt 0:54:59]} b5 {[%emt 0:24:04]} 43. axb5 {[%emt 0:55:24]} axb5 {[%emt 0:24:29]} 44. h4 {[%emt 0:52:19]} b4 {[%emt 0:13:29]} 45. Kd3 {[%emt 0:52:14]} b3 {[%emt 0:12:18]} 46. h5 {[%emt 0:52:11]} h6 {[%emt 0:02:30]} 47. Kc3 {[%emt 0:50:58]} Kd5 {[%emt 0:02:37]} 48. g5 {[%emt 0:50:32]} 1-0

[Event "SC Kreuzberg IM 2018"]
[Site "Berlin"]
[Date "2018.08.05"]
[Round "5.5"]
[White "Muse, Drazen"]
[Black "Moritz, Aron"]
[Result "1/2-1/2"]
[ECO "A48"]
[WhiteElo "2361"]
[BlackElo "2199"]
[Annotator "NA"]
[PlyCount "69"]
[EventDate "2018.08.06"]
[EventType "tourn"]
[EventCountry "GER"]
[SourceTitle "playchess.com"]
[Source "ChessBase"]
[SourceQuality "1"]
[TimeControl "40/5400+30:1800+30"]

1. d4 {[%emt 1:24:32]} Nf6 {[%emt 1:30:22]} 2. Nf3 {[%emt 1:24:39]} g6 {[%emt 1:30:41]} 3. Bg5 {[%emt 1:24:55]} Bg7 {[%emt 1:31:00]} 4. Nbd2 {[%emt 1:25:20]} c5 {[%emt 1:29:40]} 5. Bxf6 {[%emt 1:25:41]} Bxf6 {[%emt 1:30:04]} 6. Ne4 {[%emt 1:26:04]} Qb6 {[%emt 1:28:06]} 7. Nxf6+ {[%emt 1:20:18]} Qxf6 {[%emt 1:28:14]} 8. d5 {[%emt 1:17:58]} Qxb2 {[%emt 1:27:07]} 9. e4 {[%emt 1:18:24]} Qc3+ {[%emt 1:20:41]} 10. Nd2 {[%emt 1:18:44]} O-O {[%emt 1:19:58]} 11. Bd3 {[%emt 1:15:11]} f5 {[%emt 1:14:10]} 12. O-O {[%emt 1:15:14]} f4 {[%emt 1:07:14]} 13. Rb1 {[%emt 1:15:21]} d6 {[%emt 1:06:12]} 14. Re1 {[%emt 1:13:34]} Nd7 {[%emt 1:02:14]} 15. Bb5 {[%emt 1:10:08]} Ne5 {[%emt 0:59:09]} 16. Rb3 {[%emt 1:08:43]} Qa5 {[%emt 0:59:29]} 17. Nc4 {[%emt 1:08:54]} Qc7 {[%emt 0:58:34]} 18. Nxe5 {[%emt 1:09:06]} dxe5 {[%emt 0:58:58]} 19. Be2 {[%emt 1:09:26]} Rb8 {[%emt 0:46:04]} 20. c4 {[%emt 1:08:31]} Bd7 {[%emt 0:45:55]} 21. Qd2 {[%emt 1:07:47]} Rf6 {[%emt 0:39:53]} 22. h3 {[%emt 1:04:10]} Kg7 {[%emt 0:37:04]} 23. Ra1 {[%emt 1:04:23]} h5 {[%emt 0:26:14]} 24. a4 {[%emt 1:04:04]} a5 {[%emt 0:26:18]} 25. Qb2 {[%emt 1:00:33]} Kh6 {[%emt 0:24:25]} 26. Qb1 {[%emt 0:58:53]} b6 {[%emt 0:22:46]} 27. Ra2 {[%emt 0:59:00]} Rg8 {[%emt 0:22:05]} 28. Qd1 {[%emt 0:58:48]} Rgf8 {[%emt 0:20:19]} 29. Rd3 {[%emt 0:57:33]} Qd6 {[%emt 0:18:53]} 30. Rb2 {[%emt 0:55:49]} Rg8 {[%emt 0:17:03]} 31. Ra2 {[%emt 0:53:28]} Rgf8 {[%emt 0:17:06]} 32. Qd2 {[%emt 0:53:29]} Kh7 {[%emt 0:14:23]} 33. Ra1 {[%emt 0:53:31]} Kg7 {[%emt 0:13:39]} 34. Raa3 {[%emt 0:51:15]} Kh7 {[%emt 0:12:49]} 35. Qd1 {[%emt 0:50:29]} 1/2-1/2

[Event "SC Kreuzberg IM 2018"]
[Site "Berlin"]
[Date "2018.08.05"]
[Round "6.1"]
[White "Brunello, Marina"]
[Black "Moritz, Aron"]
[Result "1-0"]
[ECO "B08"]
[WhiteElo "2280"]
[BlackElo "2199"]
[Annotator "NA"]
[PlyCount "73"]
[EventDate "2018.08.06"]
[EventType "tourn"]
[EventCountry "GER"]
[SourceTitle "playchess.com"]
[Source "ChessBase"]
[SourceQuality "1"]
[TimeControl "40/5400+30:1800+30"]

1. e4 g6 2. d4 Bg7 3. Nc3 d6 4. Nf3 {[%emt 1:28:24]} a6 {[%emt 1:31:01]} 5. Be3 {[%emt 1:28:34]} Nf6 {[%emt 1:30:23]} 6. a4 {[%emt 1:20:28]} O-O {[%emt 1:29:49]} 7. Bd3 {[%emt 1:19:05]} Nc6 {[%emt 1:28:39]} 8. d5 {[%emt 1:13:16]} Ne5 {[%emt 1:26:18]} 9. Nxe5 {[%emt 1:10:59]} dxe5 {[%emt 1:26:43]} 10. a5 {[%emt 1:11:19]} e6 {[%emt 1:24:32]} 11. dxe6 {[%emt 1:05:13]} Bxe6 {[%emt 1:24:53]} 12. O-O {[%emt 1:04:51]} Qd6 {[%emt 1:15:38]} 13. Na4 {[%emt 1:00:28]} Qc6 {[%emt 1:14:58]} 14. f3 {[%emt 0:59:40]} Rad8 {[%emt 1:08:20]} 15. Nc5 {[%emt 0:55:17]} Nh5 {[%emt 0:54:25]} 16. b4 {[%emt 0:52:23]} Nf4 {[%emt 0:50:17]} 17. Qb1 {[%emt 0:46:34]} Nxd3 {[%emt 0:48:42]} 18. cxd3 {[%emt 0:46:35]} Bc8 {[%emt 0:46:53]} 19. Rc1 {[%emt 0:35:45]} Qb5 {[%emt 0:45:08]} 20. Rc4 {[%emt 0:35:15]} b6 {[%emt 0:27:50]} 21. axb6 {[%emt 0:30:20]} cxb6 {[%emt 0:28:10]} 22. Na4 {[%emt 0:30:29]} Be6 {[%emt 0:25:19]} 23. Nxb6 {[%emt 0:28:38]} Bxc4 {[%emt 0:21:11]} 24. dxc4 {[%emt 0:28:55]} Qc6 {[%emt 0:20:49]} 25. Rxa6 {[%emt 0:26:37]} f5 {[%emt 0:19:50]} 26. b5 {[%emt 0:24:05]} Qc7 {[%emt 0:15:02]} 27. Qc2 {[%emt 0:20:12]} fxe4 {[%emt 0:13:54]} 28. Qxe4 {[%emt 0:17:15]} Rd1+ {[%emt 0:13:51]} 29. Kf2 {[%emt 0:17:39]} Rfd8 {[%emt 0:11:14]} 30. Nd5 {[%emt 0:12:50]} Qf7 {[%emt 0:10:56]} 31. Ra7 {[%emt 0:11:49]} Qf8 {[%emt 0:10:26]} 32. b6 {[%emt 0:11:15]} Kh8 {[%emt 0:07:56]} 33. b7 {[%emt 0:09:26]} Qe8 {[%emt 0:05:55]} 34. Qc2 {[%emt 0:06:50]} Rh1 {[%emt 0:04:21]} 35. Qa4 {[%emt 0:06:33]} Rb1 {[%emt 0:01:06]} 36. Qxe8+ {[%emt 0:06:16]} Rxe8 {[%emt 0:01:32]} 37. Ra8 {[%emt 0:06:37]} 1-0

[Event "SC Kreuzberg IM 2018"]
[Site "Berlin"]
[Date "2018.08.05"]
[Round "6.3"]
[White "Glantz, Robert"]
[Black "Sandu, Mihaela"]
[Result "0-1"]
[ECO "B51"]
[WhiteElo "2336"]
[BlackElo "2268"]
[Annotator "NA"]
[PlyCount "44"]
[EventDate "2018.08.06"]
[EventType "tourn"]
[EventCountry "GER"]
[SourceTitle "playchess.com"]
[Source "ChessBase"]
[SourceQuality "1"]
[TimeControl "40/5400+30:1800+30"]

1. e4 {[%emt 1:27:55]} c5 {[%emt 1:30:03]} 2. Nf3 {[%emt 1:22:26]} d6 {[%emt 1:30:29]} 3. Bb5+ {[%emt 1:22:50]} Nd7 {[%emt 1:30:48]} 4. O-O {[%emt 1:22:28]} a6 {[%emt 1:31:14]} 5. Bd3 {[%emt 1:22:31]} Ngf6 {[%emt 1:31:21]} 6. Re1 {[%emt 1:22:15]} g6 {[%emt 1:25:32]} 7. c3 {[%emt 1:22:12]} Bg7 {[%emt 1:25:54]} 8. Bc2 {[%emt 1:21:59]} e5 {[%emt 1:25:14]} 9. d4 {[%emt 1:21:12]} O-O {[%emt 1:25:14]} 10. Nbd2 {[%emt 1:16:48]} b5 {[%emt 1:23:06]} 11. Nf1 {[%emt 1:13:35]} Bb7 {[%emt 1:20:20]} 12. Ng3 {[%emt 1:13:07]} cxd4 {[%emt 1:14:19]} 13. cxd4 {[%emt 1:13:29]} exd4 {[%emt 1:13:38]} 14. Nxd4 {[%emt 1:12:23]} Re8 {[%emt 1:13:13]} 15. Bf4 {[%emt 1:07:10]} Ne5 {[%emt 1:13:43]} 16. Qd2 {[%emt 1:00:03]} Nc4 {[%emt 1:00:34]} 17. Qb4 {[%emt 0:59:48]} Nh5 {[%emt 0:53:49]} 18. Nxh5 {[%emt 0:57:59]} Bxd4 {[%emt 0:54:00]} 19. Ng3 {[%emt 0:40:05]} Qf6 {[%emt 0:50:58]} 20. Ne2 {[%emt 0:33:15]} Bxb2 {[%emt 0:48:20]} 21. Rad1 {[%emt 0:29:51]} Bxe4 {[%emt 0:46:09]} 22. Bxe4 {[%emt 0:26:07]} Rxe4 {[%emt 0:45:09]} 0-1

[Event "SC Kreuzberg IM 2018"]
[Site "Berlin"]
[Date "2018.08.05"]
[Round "6.4"]
[White "Meissner, Felix"]
[Black "Malek, Daniel"]
[Result "1/2-1/2"]
[ECO "C01"]
[WhiteElo "2330"]
[BlackElo "2383"]
[Annotator "NA"]
[PlyCount "80"]
[EventDate "2018.08.06"]
[EventType "tourn"]
[EventCountry "GER"]
[SourceTitle "playchess.com"]
[Source "ChessBase"]
[SourceQuality "1"]
[TimeControl "40/5400+30:1800+30"]

1. e4 e6 2. d4 {[%emt 1:31:49]} d5 {[%emt 1:31:49]} 3. Bd3 {[%emt 1:31:49]} dxe4 {[%emt 1:31:49]} 4. Bxe4 {[%emt 1:29:59]} Nf6 {[%emt 1:32:03]} 5. Bf3 Nbd7 6. Nc3 Bd6 7. Nb5 {[%emt 1:26:52]} Bb4+ {[%emt 1:32:14]} 8. c3 {[%emt 1:26:53]} Ba5 {[%emt 1:32:37]} 9. Bf4 {[%emt 1:25:57]} O-O {[%emt 1:32:51]} 10. Ne2 {[%emt 1:24:50]} c6 {[%emt 1:32:45]} 11. Na3 {[%emt 1:23:00]} Bc7 {[%emt 1:32:27]} 12. Nc4 {[%emt 1:19:08]} Bxf4 {[%emt 1:28:29]} 13. Nxf4 {[%emt 1:19:30]} Qc7 {[%emt 1:28:52]} 14. Nd3 {[%emt 1:19:25]} c5 {[%emt 1:14:57]} 15. Rc1 {[%emt 1:15:36]} Rb8 {[%emt 1:13:58]} 16. O-O {[%emt 1:10:57]} b5 {[%emt 0:51:13]} 17. Nce5 {[%emt 1:09:37]} Nxe5 {[%emt 0:51:08]} 18. Nxe5 {[%emt 1:07:44]} Bb7 {[%emt 0:51:22]} 19. Bxb7 {[%emt 1:06:25]} Rxb7 {[%emt 0:51:28]} 20. Qf3 {[%emt 1:06:02]} Rb6 {[%emt 0:47:12]} 21. Rfd1 {[%emt 0:54:05]} Rd6 {[%emt 0:45:14]} 22. Qe2 {[%emt 0:42:58]} cxd4 {[%emt 0:40:36]} 23. cxd4 {[%emt 0:43:10]} Qb6 {[%emt 0:40:54]} 24. Nf3 {[%emt 0:38:47]} a6 {[%emt 0:39:14]} 25. Qe5 {[%emt 0:36:49]} Rfd8 {[%emt 0:38:31]} 26. Rd3 {[%emt 0:33:45]} h6 {[%emt 0:37:12]} 27. Rdc3 {[%emt 0:32:03]} Nd5 {[%emt 0:35:58]} 28. Rc8 {[%emt 0:25:53]} Ne7 {[%emt 0:35:58]} 29. Rxd8+ {[%emt 0:23:17]} Qxd8 {[%emt 0:35:40]} 30. Qe4 {[%emt 0:22:25]} Nf5 {[%emt 0:31:33]} 31. Qb7 {[%emt 0:21:29]} Qf6 {[%emt 0:30:06]} 32. Rc8+ {[%emt 0:17:07]} Kh7 {[%emt 0:26:04]} 33. Qb8 {[%emt 0:14:06]} Rxd4 {[%emt 0:19:06]} 34. Nxd4 {[%emt 0:13:18]} Qxd4 {[%emt 0:19:31]} 35. h3 {[%emt 0:11:59]} Qxb2 {[%emt 0:19:17]} 36. Qa7 {[%emt 0:08:51]} Qa1+ {[%emt 0:08:09]} 37. Kh2 {[%emt 0:09:14]} Qe5+ {[%emt 0:08:36]} 38. Kg1 {[%emt 0:06:06]} Qa1+ {[%emt 0:05:12]} 39. Kh2 {[%emt 0:06:35]} Qe5+ {[%emt 0:05:34]} 40. Kg1 {[%emt 0:06:00]} Qa1+ {[%emt 0:02:28]} 1/2-1/2